{"text_format":"1","workbook":"xlsx","n_sheets":2,"sheets":["Мониторинг","Подписанты"],"not_rendered":{"charts":0,"images":0,"macros":1,"external_links":0,"defined_names":2,"comments":0,"pivot_tables":0},"unopened":[],"bounds":{"document_bytes":16777216,"sheet_cells":100000,"rows_first":2000,"rows_last":500,"rows_between":2000,"halvings":0,"cell_chars":16384,"cell_head_chars":4096},"cells_cut":0,"cells_raw":0,"read":"whole","date_system":"1900"}

{"sheet":"Мониторинг","index":0,"n_rows":35,"n_cols":16,"rows_kept":35,"cut":false,"hidden":false,"merged":[[32,2,32,6],[32,8,32,10],[32,13,32,15],[33,13,33,15],[34,13,34,15],[31,2,31,6],[31,13,31,15],[6,14,8,14],[6,15,8,15],[7,4,8,4],[7,5,8,5],[7,6,8,6],[7,7,7,8],[6,9,7,13],[28,2,28,6],[28,13,28,15],[29,2,29,6],[29,8,29,10],[29,13,29,15],[6,0,8,0],[6,1,8,1],[6,2,8,2],[6,3,8,3],[6,4,6,8],[4,4,4,8],[0,0,0,4],[0,5,0,8],[1,5,1,8],[2,0,2,15],[3,4,3,8]]}
["Показатели ежемесячного мониторинга за",null,null,null,null,"январь 2017 года",null,null,null,"(нарастающим итогом с начала года)"]
[null,null,null,null,null,"(период с начала года, например, январь-апрель 2017 года)"]
["о  реализации мероприятий  федеральной целевой программы \"Повышение безопасности дорожного движения в 2013-2020 годах\", финансируемых за счет средств федерального бюджета в 2017 году"]
[null,null,"Государственный заказчик:",null,"Министерство транспорта Российской Федерации "]
[null,null,null,null,"(государственный заказчик)"]
[null,null,null,null,null,null,null,null,null,null,null,null,null,null,null,"тыс. рублей"]
["№ \nп/п","Мероприятие","Объем средств федерального бюджета по постановле-нию Прави-тельства РФ \nот 03.10.2013 \n№ 864 \n(в ред. от 11.10.2016 \n№ 1031)","Объем доведенных лимитов бюджетных обязательств по Феде-ральному закону от 19.12.2016 \n№ 415-ФЗ","Процедура заключения государственного контракта",null,null,null,null,"Ход исполнения обязательств по государственному контракту с начала года",null,null,null,null,"Остаток лимитов бюджетных обязательств (столбец 4 - столбец 9)","Этап выполнения мероприятия"]
[null,null,null,null," Информация о наличии технических заданий (есть/нет)","Информация о размещении конкурсной документации (номер, дата)","№, дата государственного контракта, \nнаименования организаций-исполнителей","Стоимость работ  действующего государственного контракта"]
[null,null,null,null,null,null,null,"Всего","в т.ч. предумотрено на 2017 год","Оплаченный аванс","Принято работ по актам выполненных работ","Всего оплачено по контракту (кассовые расходы с начала года)","Остаток средств, подлежащих перечислению  (столбец  9 - столбец 12)","Срок исполнения, предусмотрен-ный контрактом"]
[1,2,3,4,5,6,7,8,9,10,11,12,13,14,15,16]
[null,"ВСЕГО (НИОКР, прочие нужды) ",{"$f":"SUM(C12,C17)","v":210914.2},{"$f":"SUM(D12,D17)","v":131395.4},null,null,null,{"$f":"SUM(H12,H17)","v":0},{"$f":"I12+I17","v":0},{"$f":"J12+J17","v":0},{"$f":"K12+K17","v":0},{"$f":"L12+L17","v":0},{"$f":"M12+M17","v":0},null,{"$f":"O12+O17","v":131395.4}]
[null,"НИОКР, всего",{"$f":"SUM(C14:C16)","v":26473.599999999999},{"$f":"SUM(D14:D16)","v":17360.7},null,null,null,{"$f":"SUM(H14:H16)","v":0},{"$f":"SUM(I14:I16)","v":0},{"$f":"SUM(J14:J16)","v":0},{"$f":"SUM(K14:K16)","v":0},{"$f":"SUM(L14:L16)","v":0},{"$f":"I12-L12","v":0},null,{"$f":"D12-I12","v":17360.7}]
[null,"в том числе:"]
[1,"2/2 «Проведение научных исследований, разработка условий и требований по нормативно-правовому обеспечению внедрения и развития сервисов интеллектуальных транспортных систем в сфере обеспечения безопасности дорожного движения, повышения качества функционирования региональных транспортных систем и работы автомобильного транспорта»",10000,6851.3,null,null,null,null,null,null,null,null,{"$f":"I14-L14","v":0},null,{"$f":"D14-I14","v":6851.3}]
[2,"5/1 «Проведение научных исследований, направленных на разработку современных методов организации дорожного движения, в том числе основанных на исследовании влияния режимов движения транспортных потоков на безопасность дорожного движения»",10000,6927.4,null,null,null,null,null,null,null,null,{"$f":"I15-L15","v":0},null,{"$f":"D15-I15","v":6927.4}]
[3,"7/5 «Проведение научных исследований в области применения программных продуктов математического моделирования транспортных потоков при разработке комплексных схем организации дорожного движения, проектов организации дорожного движения, а также проектов автоматизированных систем управления дорожным движением. Разработка предложений по нормативному и методическому обеспечению использования программных продуктов при проектировании в сфере организации дорожного движения»",6473.6,3582,null,null,null,null,null,null,null,null,0,null,3582]
[null,"Прочие нужды, всего",{"$f":"SUM(C19:C25)","v":184440.6},{"$f":"SUM(D19:D25)","v":114034.69999999998},null,null,null,{"$f":"SUM(H19:H22,H24:H25)","v":0},{"$f":"SUM(I19:I22,I24:I25)","v":0},{"$f":"SUM(J19:J22,J24:J25)","v":0},{"$f":"SUM(K19:K22,K24:K25)","v":0},{"$f":"SUM(L19:L22,L24:L25)","v":0},{"$f":"I17-L17","v":0},null,{"$f":"D17-I17","v":114034.69999999998}]
[null,"в том числе:"]
[1,"2/13 «Подготовка и издание учебно-методических и наглядных пособий, фильмов и других материалов, а также издание комплектов учебно-методических материалов по курсу дистанционного обучения специалистов, ответственных за обеспечение безопасного функционирования автомобильного транспорта»",10000,3376,null,null,null,null,null,null,null,null,{"$f":"I19-L19","v":0},null,{"$f":"D19-I19","v":3376}]
[2,"2/14 «Материально-техническое обеспечение федерального бюджетного учреждения \"Агентство автомобильного транспорта\" (оборудование, программные комплексы) в целях подготовки водителей, повышения квалификации инженерно-технического и руководящего состава автотранспортных предприятий, а также обучения контрольно-надзорных органов в сфере автомобильного транспорта,\nв том числе: создание аппаратно-программного комплекса организационно-методического обеспечения процессов подготовки водителей, инженерно-технического и руководящего состава автотранспортных предприятий, контроля и учета выдачи разрешительных документов»",35440.6,14360,null,null,null,null,null,null,null,null,{"$f":"I20-L20","v":0},null,{"$f":"D20-I20","v":14360}]
[3,"2/15 «Ежегодное проведение всероссийского конкурса профессионального мастерства водителей транспортных средств, проведение комплексной информационно-пропагандистской кампании, направленной на водителей коммерческого, грузового и пассажирского транспорта, в целях повышения их ответственности и культуры поведения на дороге, подготовка тематических телепрограмм»",30000,19419.599999999999,null,null,null,null,null,null,null,null,0,null,19419.599999999999]
[4,"5/11 «Создание аппаратно-программного комплекса автоматизированного учета и предоставления тахографической информации для осуществления контрольно-надзорной деятельности в области организации движения транспортных средств, соблюдения маршрута движения, режима труда и отдыха водителей»",80000,55468.7,null,null,null,null,null,null,null,null,0,null,55468.7]
[5,"5/12 «Проведение специализированных обучающих конференций и семинаров, посвященных вопросам совершенствования организации дорожного движения, освещение проблем организации дорожного движения в средствах массовой информации»",20000,15225,null,null,null,null,null,null,null,null,0,null,15225]
[6,"5/13 «Подготовка ежегодных аналитических обзоров и предложений по совершенствованию законодательного и нормативно-правового регулирования в сфере обеспечения безопасности автомобильных перевозок пассажиров и грузов»",2000,1522.7,null,null,null,null,null,null,null,null,0,null,1522.7]
[7,"7/9 «Подготовка и периодическое повышение квалификации работников Госавтоинспекции и управлений госавтодорнадзора Ространснадзора по осуществлению контрольно-надзорных функций по соблюдению владельцами транспортных средств установленных требований по параметрам перевозок (режим труда и отдыха водителей, скоростной режим движения и др.) с применением цифровых тахографов»",7000,4662.7,null,null,null,null,null,null,null,null,0,null,4662.7]
[]
[]
[]
[null,"Руководитель    ","Заместитель директора Департамента государственной политики в области автомобильного и городского пассажирского транспорта",null,null,null,null,null,null,null,null,null,null,"В.В. Луговенко"]
[null,null,"(Должность)",null,null,null,null,null,"Подпись",null,null,null,null,"(Ф.И.О.)"]
[]
[null,"Исполнитель     ","Главный специалист-эксперт",null,null,null,null,null,null,null,null,null,null,"В.В. Коптев"]
[null,null,"(Должность)",null,null,null,null,null,"Подпись",null,null,null,null,"(Ф.И.О.)"]
[null,null,null,null,null,null,null,null,null,null,null,null,null,"koptevvv@mintrans.ru"]
[null,null,null,null,null,null,null,null,null,null,null,null,null,"(адрес электронной почты)"]

{"sheet":"Подписанты","index":1,"n_rows":8,"n_cols":14,"rows_kept":8,"cut":false,"hidden":true,"merged":[[5,13,5,15],[7,13,7,15],[0,2,0,6],[1,2,1,6],[1,8,1,10],[1,13,1,15],[2,2,2,6],[3,2,3,6],[3,8,3,10],[3,13,3,15]]}
[null,"Руководитель    "]
[null,null,"(Должность)",null,null,null,null,null,"Подпись",null,null,null,null,"(Ф.И.О.)"]
[null,"Исполнитель     "]
[null,null,"(Должность)",null,null,null,null,null,"Подпись",null,null,null,null,"(Ф.И.О.)"]
[]
[null,null,null,null,null,null,null,null,null,null,null,null,null,"(адрес электронной почты)"]
[]
[null,null,null,null,null,null,null,null,null,null,null,null,null,"(контактный телефон)"]